bitfinex/quotes_BTCUSD_20260308
["timestamp","ask_amount","ask_price","bid_price","bid_amount"]
[1772970692526,0.04082064,67447.0,67434.0,0.07426612]
[1772970693026,0.07561338,67446.0,67434.0,0.07426612]
[1772970693241,0.03934064,67445.0,67434.0,0.07426612]
[1772970693375,0.03918811,67444.0,67434.0,0.07426612]
[1772970693578,0.19747834,67443.0,67432.0,0.07414849]
[1772970693813,0.03934064,67441.0,67433.0,0.07414639]
[1772970694028,0.03934064,67441.0,67433.0,0.07414657]
[1772970694230,0.07413338,67446.0,67433.0,0.07414657]
[1772970694430,0.00148,67445.0,67434.0,0.23337425]
[1772970694986,0.07413557,67444.0,67435.0,0.07414547]
[1772970695231,0.07213557,67444.0,67435.0,0.07414547]
[1772970695609,0.03934064,67443.0,67435.0,0.07414547]
[1772970697100,0.07413777,67442.0,67433.0,0.0002]
[1772970697311,0.11347841,67442.0,67433.0,0.0002]
[1772970698140,0.07561501,67445.0,67433.0,0.0002]
[1772970698351,0.07561501,67445.0,67434.0,0.23337425]
[1772970698553,0.07561501,67445.0,67442.0,0.00015]
[1772970699919,0.07561501,67445.0,67435.0,0.07414547]
[1772970700139,0.07413501,67445.0,67435.0,0.07414547]
[1772970700336,0.00148,67444.0,67435.0,0.07414547]
[1772970701398,0.04801092,67444.0,67435.0,0.07414547]
[1772970702227,0.07413667,67443.0,67433.0,0.0002]
[1772970702677,0.07412472,67454.0,67434.0,0.19352734]
[1772970702877,0.00148,67450.0,67437.0,0.04826485]
[1772970703024,0.00148,67450.0,67439.0,0.04826485]
[1772970703220,0.00022001,67444.0,67439.0,0.19352734]
[1772970703557,0.00148,67449.0,67440.0,0.04826485]
[1772970704334,0.00148,67449.0,67441.0,0.07413887]
[1772970704750,0.07434885,67451.0,67441.0,0.07413887]
[1772970704947,0.00022001,67451.0,67441.0,0.07413887]
[1772970705218,0.00148,67450.0,67441.0,0.07413887]
[1772970705568,0.00148,67449.0,67441.0,0.07413887]
[1772970709855,0.07412645,67453.0,67442.0,0.04826485]
[1772970710056,0.00148,67448.0,67442.0,0.04826485]
[1772970711150,0.00148,67448.0,67443.0,0.07413667]
[1772970712248,0.00148,67453.0,67443.0,0.07413667]
[1772970712453,0.00159962,67453.0,67443.0,0.07413667]
[1772970713835,0.07412678,67452.0,67439.0,0.07414107]
[1772970714036,0.07412678,67452.0,67439.0,0.12240592]
[1772970714227,0.1206577,67452.0,67439.0,0.12240592]
[1772970715017,0.07412678,67452.0,67439.0,0.12240592]
[1772970716057,0.00022001,67458.0,67441.0,0.04826485]
[1772970716210,0.00148,67456.0,67444.0,0.19352734]
[1772970716410,0.00148,67456.0,67447.0,0.04826485]
[1772970718252,0.00148,67455.0,67449.0,0.07655769]
[1772970718653,0.07434086,67458.0,67449.0,0.07655769]
[1772970718865,0.00022001,67456.0,67449.0,0.07655769]
[1772970721269,0.00022001,67456.0,67450.0,0.07412898]
[1772970721492,0.07412019,67460.0,67450.0,0.07412898]
[1772970721493,0.07410373,67473.0,67452.0,0.19352734]
[1772970721653,0.07432601,67471.0,67456.0,0.19352734]
[1772970721856,0.07432601,67471.0,67458.0,0.07655769]
[1772970722022,0.00022001,67471.0,67458.0,0.07655769]
[1772970722228,0.0004,67475.0,67459.0,0.19352734]
[1772970722435,0.07450187,67475.0,67461.0,0.07655769]
[1772970722639,0.07450187,67475.0,67463.0,0.07655769]
[1772970723039,0.07450187,67475.0,67464.0,0.0741136]
[1772970723244,0.00148,67474.0,67464.0,0.15067129]
[1772970723569,0.07450187,67475.0,67464.0,0.15067129]
[1772970723750,0.00148,67474.0,67464.0,0.15067129]
[1772970724747,0.193297,67473.0,67453.0,0.07412561]
[1772970724907,0.193297,67473.0,67454.0,0.07655769]
[1772970724908,0.00148,67472.0,67454.0,0.07655769]
[1772970725350,0.07410591,67471.0,67455.0,0.07412348]
[1772970725546,0.00148,67470.0,67455.0,0.07412348]
[1772970725844,0.00148,67470.0,67455.0,0.15068117]
[1772970726045,0.00148,67469.0,67455.0,0.07412348]
[1772970726205,0.193297,67468.0,67452.0,0.07412678]
[1772970726601,0.07410591,67471.0,67450.0,0.07412802]
[1772970726602,0.00148,67467.0,67450.0,0.07412802]
[1772970726946,0.193297,67466.0,67450.0,0.07412802]
[1772970727770,0.2674095,67465.0,67450.0,0.07412802]
[1772970728130,0.00148,67464.0,67450.0,0.15068571]
[1772970728852,0.00148,67463.0,67450.0,0.15068571]
[1772970731586,0.00148,67462.0,67451.0,0.21382907]
[1772970731817,0.00148,67462.0,67452.0,0.07655769]
[1772970732230,0.00148,67462.0,67450.0,0.07412802]
[1772970733916,0.07411689,67461.0,67452.0,0.0002]
[1772970735724,0.193297,67460.0,67440.0,0.07413985]
[1772970735910,0.193297,67460.0,67441.0,0.07433849]
[1772970736537,0.193297,67458.0,67441.0,0.07433849]
[1772970738660,0.1769128,67478.0,67441.0,0.0002]
[1772970738858,0.1769128,67478.0,67445.0,0.21382907]
[1772970738859,0.07410481,67472.0,67445.0,0.21382907]
[1772970739054,0.07558481,67472.0,67448.0,0.07655769]
[1772970739235,0.07558481,67472.0,67451.0,0.21382907]
[1772970739438,0.07558481,67472.0,67453.0,0.07655769]
[1772970739682,0.07558481,67472.0,67453.0,0.07803769]
[1772970739683,0.26888181,67472.0,67453.0,0.07803769]
[1772970740439,0.07410481,67472.0,67445.0,0.21382907]
[1772970740646,0.07410701,67470.0,67448.0,0.07655769]
[1772970740834,0.00022001,67474.0,67447.0,0.07413228]
[1772970740835,0.00022001,67488.0,67452.0,0.21382907]
[1772970741036,0.07431594,67481.0,67455.0,0.21382907]
[1772970741366,0.00022001,67474.0,67460.0,0.07655769]
[1772970741533,0.00022001,67474.0,67461.0,0.21382907]
[1772970741738,0.00022001,67474.0,67464.0,0.07655769]
[1772970741938,0.00022001,67474.0,67466.0,0.07655769]
[1772970743371,0.00022001,67474.0,67467.0,0.15066799]
[1772970743618,0.07430811,67488.0,67468.0,0.00148]
[1772970744160,0.00148,67487.0,67468.0,0.07655769]
[1772970744291,0.193297,67486.0,67469.0,0.07803769]
[1772970744658,0.00148,67487.0,67469.0,0.07803769]
[1772970744659,0.00148,67487.0,67471.0,0.07655769]
[1772970744938,0.00148,67487.0,67475.0,0.07655769]
[1772970745107,0.00148,67487.0,67477.0,0.07655769]
[1772970745274,0.07408944,67486.0,67477.0,0.07655769]
[1772970745474,0.07408944,67486.0,67478.0,0.07409822]
[1772970745927,0.00148,67491.0,67479.0,0.21382907]
[1772970746100,0.00148,67491.0,67482.0,0.07655769]
[1772970746524,0.0875595,67492.0,67482.0,0.07655769]
[1772970746735,0.0860795,67492.0,67482.0,0.07655769]
[1772970746959,0.0875595,67492.0,67482.0,0.07655769]
[1772970747934,0.01199608,67492.0,67484.0,0.07655769]
[1772970748131,0.01347608,67492.0,67484.0,0.07655769]
[1772970748466,0.01199608,67492.0,67484.0,0.07655769]
[1772970749009,0.01221609,67492.0,67484.0,0.07655769]
[1772970749249,0.01221609,67492.0,67484.0,0.07638995]
[1772970749450,0.08629914,67492.0,67483.0,0.07409273]
[1772970750273,0.08629914,67492.0,67482.0,0.07409309]
[1772970750673,0.08629914,67492.0,67481.0,0.07409433]
[1772970752084,0.08629914,67492.0,67458.0,0.22168884]
[1772970752085,0.07408504,67490.0,67470.0,0.00148]
[1772970752366,0.26738204,67490.0,67471.0,0.07647382]
[1772970752536,0.07408504,67490.0,67471.0,0.07647382]
[1772970752716,0.21478063,67489.0,67471.0,0.07647382]
[1772970753520,0.21478063,67489.0,67471.0,0.07747382]
[1772970753691,0.21478063,67489.0,67471.0,0.07647382]
[1772970754739,0.07408724,67488.0,67472.0,0.07410481]
[1772970755032,0.21478063,67487.0,67472.0,0.07410481]
[1772970756213,0.21478063,67487.0,67472.0,0.15057863]
[1772970756417,0.21478063,67487.0,67470.0,0.07422634]
[1772970756844,0.21478063,67485.0,67463.0,0.07411469]
[1772970757055,0.21490025,67485.0,67465.0,0.00148]
[1772970757258,0.21490025,67485.0,67465.0,0.07795382]
[1772970757701,0.21490025,67485.0,67465.0,0.07647382]
[1772970758900,0.21478063,67483.0,67466.0,0.0741114]
[1772970760413,0.21478063,67483.0,67458.0,0.07412017]
[1772970760792,0.21478063,67481.0,67458.0,0.15059399]
[1772970761120,0.21478063,67479.0,67458.0,0.15059399]
[1772970761326,0.21478063,67479.0,67459.0,0.00148]
[1772970761705,0.21478063,67479.0,67458.0,0.15207399]
[1772970761875,0.21478063,67479.0,67458.0,0.07560017]
[1772970762079,0.21478063,67479.0,67459.0,0.07647382]
[1772970762871,0.07409822,67478.0,67460.0,0.07411799]
[1772970763078,0.21478063,67477.0,67460.0,0.07411799]
[1772970764128,0.01221609,67492.0,67462.0,0.21214572]
[1772970764334,0.0742104,67485.0,67466.0,0.21214572]
[1772970764664,0.0742104,67485.0,67467.0,0.07795382]
[1772970764992,0.0742104,67485.0,67469.0,0.07647382]
[1772970765221,0.00148,67484.0,67472.0,0.07647382]
[1772970766189,0.00022001,67489.0,67472.0,0.07647382]
[1772970766381,0.07408076,67494.0,67475.0,0.21214572]
[1772970766586,0.07407764,67497.0,67476.0,0.00148]
[1772970766792,0.00148,67498.0,67481.0,0.07647382]
[1772970766793,0.07429855,67496.0,67481.0,0.07647382]
[1772970766944,0.07429855,67496.0,67485.0,0.21214572]
[1772970767145,0.07429855,67496.0,67486.0,0.07647382]
[1772970767553,0.07429855,67496.0,67485.0,0.00148]
[1772970767757,0.07577855,67496.0,67485.0,0.07795382]
[1772970767958,0.07577855,67496.0,67485.0,0.07647382]
[1772970768995,0.00142001,67499.0,67488.0,0.07647382]
[1772970769404,0.00142001,67499.0,67488.0,0.07630605]
[1772970769631,0.00290001,67499.0,67488.0,0.07630605]
[1772970770423,0.00170001,67503.0,67491.0,0.21214572]
[1772970770651,0.07577103,67503.0,67493.0,0.21214572]
[1772970770798,0.07577103,67503.0,67494.0,0.07638994]
[1772970771195,0.07406022,67513.0,67498.0,0.21214572]
[1772970771397,0.08000605,67511.0,67501.0,0.07638994]
[1772970771623,0.08000605,67511.0,67502.0,0.07638994]
[1772970771795,0.08040485,67511.0,67502.0,0.07638994]
[1772970771997,0.08040485,67511.0,67502.0,0.07162805]
[1772970772221,0.00022001,67506.0,67502.0,0.07162805]
[1772970772425,0.00022001,67506.0,67503.0,0.21214572]
[1772970772750,0.00022001,67506.0,67504.0,0.07400899]
[1772970773163,0.00022001,67506.0,67505.0,0.07406858]
[1772970773375,0.00022001,67506.0,67505.0,0.14807757]
[1772970777437,0.00022001,67506.0,67505.0,0.07400899]
[1772970779030,0.21478063,67505.0,67492.0,0.07408268]
[1772970779229,0.21478063,67505.0,67493.0,0.07408175]
[1772970779405,0.00148,67504.0,67493.0,0.07408175]
[1772970780479,0.21478063,67503.0,67491.0,0.07408175]
[1772970780926,0.07407187,67502.0,67488.0,0.0002]
[1772970781075,0.2888525,67502.0,67489.0,0.00148]
[1772970781406,0.2888525,67502.0,67488.0,0.0002]
[1772970781643,0.2888525,67502.0,67488.0,0.00168]
[1772970781927,0.2888525,67502.0,67488.0,0.0002]
[1772970782130,0.2888525,67502.0,67488.0,0.07568899]
[1772970782634,0.07407187,67503.0,67488.0,0.07568899]
[1772970783056,0.07407187,67503.0,67490.0,0.07400899]
[1772970784628,0.2977028,67503.0,67490.0,0.07400899]
[1772970785594,0.07429188,67503.0,67491.0,0.14809294]
[1772970787168,0.07429188,67503.0,67491.0,0.07408395]
[1772970787343,0.07429188,67503.0,67491.0,0.14809294]
[1772970787546,0.07429188,67503.0,67491.0,0.07400899]
[1772970791163,0.07429188,67503.0,67492.0,0.07408285]
[1772970791667,0.07429188,67503.0,67492.0,0.14809184]
[1772970792882,0.07555051,67504.0,67493.0,0.07400899]
[1772970793085,0.07407187,67503.0,67493.0,0.07400899]
[1772970793409,0.07443373,67510.0,67497.0,0.07400899]
[1772970793410,0.07443348,67510.0,67497.0,0.07400899]
[1772970793537,0.07443348,67510.0,67498.0,0.22576908]
[1772970793737,0.07443348,67510.0,67499.0,0.07400899]
[1772970793936,0.07591348,67510.0,67499.0,0.07400899]
[1772970794158,0.07443348,67510.0,67499.0,0.07400899]
[1772970795357,0.07443348,67510.0,67501.0,0.07400899]
[1772970795655,0.0740585,67515.0,67501.0,0.07400899]
[1772970795917,0.00011959,67515.0,67503.0,0.07400899]
[1772970796080,0.00011959,67515.0,67504.0,0.07400899]
[1772970796302,0.00011959,67515.0,67505.0,0.07400899]
[1772970797095,0.00011959,67515.0,67507.0,0.07400899]
[1772970797293,0.00011959,67515.0,67508.0,0.07406529]
[1772970797494,0.00011959,67515.0,67508.0,0.14807428]
[1772970797912,0.0740523,67520.0,67508.0,0.14807428]
[1772970797913,0.00022001,67531.0,67508.0,0.07406529]
[1772970798089,0.00022001,67531.0,67509.0,0.07400899]
[1772970798090,0.22363093,67528.0,67509.0,0.07400899]
[1772970798546,0.00022001,67516.0,67509.0,0.07400899]
[1772970798905,0.00022001,67523.0,67509.0,0.07400899]
[1772970799260,0.00022001,67523.0,67510.0,0.0740631]
[1772970799414,0.00022001,67523.0,67511.0,0.07400899]
[1772970799612,0.07426891,67523.0,67513.0,0.07400899]
[1772970800040,0.07426891,67523.0,67514.0,0.00148]
[1772970800218,0.07426891,67523.0,67514.0,0.07548899]
[1772970801262,0.07426891,67523.0,67514.0,0.07553771]
[1772970801454,0.07426891,67523.0,67508.0,0.07566398]
[1772970801455,0.22511093,67522.0,67508.0,0.07566398]
[1772970802134,0.22511093,67522.0,67508.0,0.07418398]
[1772970803416,0.22363093,67520.0,67508.0,0.07418398]
[1772970804021,0.22363093,67520.0,67503.0,0.00148]
[1772970804199,0.22375045,67520.0,67503.0,0.00148]
[1772970805591,0.22375045,67520.0,67503.0,0.07555018]
[1772970805592,0.22363093,67518.0,67503.0,0.07555018]
[1772970807325,0.22363093,67518.0,67502.0,0.07407104]
[1772970807529,0.22363093,67518.0,67503.0,0.07407018]
[1772970807960,0.29916635,67517.0,67503.0,0.07548899]
[1772970808663,0.22363093,67516.0,67503.0,0.07548899]
[1772970811262,0.29768854,67515.0,67504.0,0.07406968]
[1772970813596,0.21699243,67514.0,67504.0,0.07406968]
[1772970814172,0.07405761,67515.0,67504.0,0.07406968]
[1772970814408,0.07553761,67515.0,67505.0,0.07400899]
[1772970816939,0.00011952,67520.0,67506.0,0.07400899]
[1772970817143,0.00011952,67520.0,67507.0,0.07400899]
[1772970817351,0.00011952,67520.0,67509.0,0.07400899]
[1772970817598,0.00011952,67520.0,67511.0,0.07400899]
[1772970818516,0.00022001,67522.0,67511.0,0.07400899]
[1772970818737,0.00015,67527.0,67511.0,0.07412851]
[1772970818946,0.0740376,67534.0,67516.0,0.23199847]
[1772970818947,0.00022001,67530.0,67516.0,0.23199847]
[1772970819063,0.00022001,67530.0,67517.0,0.07548899]
[1772970821214,0.00022001,67530.0,67519.0,0.07400899]
[1772970821787,0.00022001,67530.0,67519.0,0.06924872]
[1772970823593,0.29149647,67529.0,67520.0,0.07405213]
[1772970823793,0.07450404,67529.0,67520.0,0.07405213]
[1772970824010,0.21699243,67528.0,67520.0,0.07405213]
[1772970826093,0.29103651,67528.0,67519.0,0.07405213]
[1772970827276,0.21699243,67528.0,67519.0,0.07405213]
[1772970827840,0.2910362,67528.0,67519.0,0.07405213]
[1772970829306,0.29125621,67528.0,67519.0,0.07405213]
[1772970830971,0.07426378,67528.0,67519.0,0.07405213]
[1772970831218,0.07426378,67528.0,67520.0,0.07162886]
[1772970833035,0.26401339,67527.0,67518.0,0.02107819]
[1772970833181,0.07426378,67528.0,67517.0,0.07553322]
[1772970833182,0.21699243,67525.0,67517.0,0.07405432]
[1772970833625,0.21699243,67525.0,67514.0,0.07405651]
[1772970833825,0.00148,67524.0,67514.0,0.07405651]
[1772970834025,0.21847243,67524.0,67514.0,0.07405651]
[1772970834433,0.07426378,67528.0,67515.0,0.05341059]
[1772970834631,0.00148,67527.0,67515.0,0.05341059]
[1772970834876,0.07404555,67526.0,67516.0,0.07405651]
[1772970836929,0.00148,67525.0,67516.0,0.07405651]
[1772970837737,0.00148,67525.0,67515.0,0.12746808]
[1772970837937,0.00148,67525.0,67515.0,0.07405749]
[1772970838529,0.00148,67525.0,67516.0,0.0002]
[1772970838976,0.05802804,67522.0,67511.0,0.07406185]
[1772970839203,0.29104017,67524.0,67511.0,0.07406185]
[1772970839403,0.07404774,67524.0,67512.0,0.05341059]
[1772970840460,0.00148,67523.0,67512.0,0.05341059]
[1772970841098,0.07404993,67522.0,67514.0,0.05341059]
[1772970841681,0.07426392,67528.0,67515.0,0.23199847]
[1772970841896,0.07574392,67528.0,67517.0,0.05341059]
[1772970842136,0.07426392,67528.0,67517.0,0.05341059]
[1772970842399,0.00022001,67528.0,67517.0,0.05341059]
[1772970842956,0.00022001,67528.0,67519.0,0.05341059]
[1772970844053,0.07426366,67528.0,67519.0,0.05341059]
[1772970845244,0.07426366,67528.0,67520.0,0.07405213]
[1772970847540,0.07450431,67529.0,67521.0,0.05632318]
[1772970849240,0.07450431,67529.0,67522.0,0.07404993]
[1772970850092,0.00170001,67531.0,67523.0,0.0566076]
[1772970850461,0.00022001,67531.0,67523.0,0.0566076]
[1772970851461,0.00022001,67531.0,67524.0,0.07404774]
[1772970855248,0.00022001,67531.0,67525.0,0.0566076]
[1772970858072,0.00022001,67531.0,67526.0,0.07404555]
[1772970860428,0.00022001,67531.0,67527.0,0.0566076]
[1772970860803,0.00170001,67533.0,67527.0,0.13065182]
[1772970860977,0.00170001,67533.0,67527.0,0.07404422]
[1772970861786,0.07573793,67533.0,67527.0,0.07404422]
[1772970862714,0.07425793,67533.0,67524.0,0.07404774]
[1772970863269,0.00022001,67531.0,67524.0,0.07404774]
[1772970863747,0.00148,67539.0,67525.0,0.23664249]
[1772970863868,0.00148,67539.0,67526.0,0.0566076]
[1772970864073,0.07402801,67542.0,67526.0,0.0566076]
[1772970864321,0.00148,67541.0,67527.0,0.0566076]
[1772970864685,0.00148,67540.0,67529.0,0.0566076]
[1772970864912,0.00012,67544.0,67529.0,0.0566076]
[1772970865127,0.00012,67544.0,67533.0,0.0566076]
[1772970865776,0.14775785,67551.0,67535.0,0.0566076]
[1772970866021,0.00148,67548.0,67537.0,0.0566076]
[1772970866476,0.00159959,67548.0,67537.0,0.0566076]
[1772970866677,0.00011959,67548.0,67537.0,0.0566076]
[1772970866879,0.30958736,67555.0,67539.0,0.0566076]
[1772970867080,0.00148,67554.0,67539.0,0.05672719]
[1772970867450,0.07401406,67555.0,67539.0,0.23824208]
[1772970867648,0.00148,67554.0,67540.0,0.0566076]
[1772970868074,0.07401406,67555.0,67541.0,0.23664249]
[1772970868295,0.07401376,67556.0,67542.0,0.0566076]
[1772970868296,0.00148,67553.0,67542.0,0.0566076]
[1772970868900,0.07401666,67553.0,67543.0,0.13063451]
[1772970869132,0.07549666,67553.0,67543.0,0.13063451]
[1772970869676,0.07401666,67553.0,67543.0,0.13063451]
[1772970869900,0.07401666,67553.0,67544.0,0.0566076]
[1772970871727,0.07401666,67553.0,67545.0,0.07402472]
[1772970871926,0.07401666,67553.0,67545.0,0.13063232]
[1772970872499,0.07423476,67555.0,67545.0,0.13063232]
[1772970872728,0.07571476,67555.0,67545.0,0.13063232]
[1772970873603,0.00022001,67555.0,67546.0,0.0566076]
[1772970873943,0.00022001,67555.0,67547.0,0.13063013]
[1772970878272,0.00022001,67555.0,67547.0,0.07402253]
[1772970878470,0.00022001,67555.0,67548.0,0.0566076]
[1772970879049,0.00022001,67555.0,67549.0,0.07402034]
[1772970879483,0.00022001,67555.0,67549.0,0.13130745]
[1772970879884,0.07548938,67559.0,67550.0,0.05728711]
[1772970881284,0.07548938,67559.0,67551.0,0.07401814]
[1772970881481,0.23625172,67558.0,67544.0,0.07422524]
[1772970881695,0.05742131,67555.0,67545.0,0.00148]
[1772970881895,0.29367303,67554.0,67545.0,0.00148]
[1772970882094,0.29367303,67554.0,67544.0,0.07422524]
[1772970883905,0.07401595,67553.0,67544.0,0.0002]
[1772970884271,0.07549595,67553.0,67542.0,0.00148]
[1772970884426,0.23625172,67550.0,67537.0,0.07423343]
[1772970884628,0.05742131,67547.0,67537.0,0.07423343]
[1772970884830,0.0001195,67550.0,67537.0,0.07423343]
[1772970884831,0.23625172,67545.0,67537.0,0.0002]
[1772970885028,0.29367303,67544.0,67536.0,0.07403349]
[1772970885814,0.29367303,67544.0,67537.0,0.0002]
[1772970886155,0.07402691,67543.0,67537.0,0.0002]
[1772970886386,0.29367303,67544.0,67537.0,0.0002]
[1772970886607,0.36769928,67544.0,67537.0,0.0002]
[1772970888910,0.07402625,67544.0,67537.0,0.0002]
[1772970889075,0.36769928,67544.0,67529.0,0.07552226]
[1772970889272,0.36769928,67544.0,67529.0,0.13280937]
[1772970890028,0.05742131,67543.0,67529.0,0.13280937]
[1772970890789,0.07402801,67542.0,67529.0,0.13280937]
[1772970892722,0.36770104,67542.0,67529.0,0.13280937]
[1772970896269,0.07402801,67542.0,67529.0,0.13280937]
[1772970896435,0.29367303,67541.0,67529.0,0.07552226]
[1772970896769,0.05742131,67540.0,67529.0,0.07552226]
[1772970900645,0.1314518,67540.0,67529.0,0.07552226]
[1772970900858,0.07401601,67553.0,67533.0,0.05728711]
[1772970901014,0.07401349,67556.0,67533.0,0.05728711]
[1772970901217,0.23647173,67562.0,67536.0,0.21593467]
[1772970901218,0.07400979,67559.0,67536.0,0.21593467]
[1772970901457,0.07401162,67557.0,67540.0,0.21593467]
[1772970901669,0.07401268,67556.0,67543.0,0.05728711]
[1772970901872,0.07423392,67555.0,67545.0,0.05728711]
[1772970902074,0.07423392,67555.0,67547.0,0.05728711]
[1772970902473,0.00022001,67555.0,67547.0,0.05728711]
[1772970902690,0.00022001,67555.0,67549.0,0.05728711]
[1772970904087,0.35239722,67555.0,67546.0,0.00148]
[1772970904290,0.35239722,67555.0,67541.0,0.07402853]
[1772970904492,0.35239722,67555.0,67534.0,0.07403678]
[1772970904493,0.05687259,67552.0,67534.0,0.07403678]
[1772970904701,0.00148,67554.0,67538.0,0.07551155]
[1772970904702,0.27816319,67547.0,67538.0,0.07551155]
[1772970905026,0.27816319,67547.0,67538.0,0.07403155]
[1772970905255,0.05687259,67546.0,67535.0,0.07403499]
[1772970905402,0.07402143,67548.0,67535.0,0.07403499]
[1772970905600,0.27816319,67547.0,67535.0,0.07551499]
[1772970906411,0.27816319,67547.0,67535.0,0.00148]
[1772970906620,0.07402143,67548.0,67532.0,0.00148]
[1772970906846,0.07402362,67546.0,67531.0,0.07404336]
[1772970907041,0.2212906,67545.0,67531.0,0.07404336]
[1772970907265,0.05687259,67542.0,67531.0,0.07404336]
[1772970907591,0.27816319,67540.0,67531.0,0.07404336]
[1772970907960,0.00148,67541.0,67535.0,0.0002]
[1772970908484,0.05687259,67539.0,67535.0,0.0002]
[1772970908660,0.00148,67541.0,67535.0,0.0002]
[1772970908661,0.27605059,67538.0,67535.0,0.0002]
[1772970908863,0.07403349,67537.0,67535.0,0.0002]
[1772970909090,0.07403023,67540.0,67535.0,0.0002]
[1772970909773,0.07403023,67540.0,67523.0,0.0002]
[1772970909774,0.2212906,67539.0,67523.0,0.0002]
[1772970909972,0.2212906,67537.0,67523.0,0.07424861]
[1772970910159,0.05475999,67538.0,67524.0,0.05902479]
[1772970910363,0.00148,67537.0,67524.0,0.05902479]
[1772970910668,0.07403023,67540.0,67525.0,0.07404664]
[1772970910873,0.00148,67539.0,67525.0,0.13307143]
[1772970912816,0.07403239,67538.0,67525.0,0.13307143]
[1772970914094,0.05475999,67536.0,67525.0,0.07404664]
[1772970914301,0.05475999,67534.0,67525.0,0.07404664]
[1772970914642,0.00148,67534.0,67525.0,0.13307143]
[1772970915150,0.07403787,67533.0,67525.0,0.13307143]
[1772970916621,0.07403787,67533.0,67525.0,0.13327143]
[1772970918781,0.07415867,67533.0,67525.0,0.13327143]
[1772970919628,0.0001208,67533.0,67525.0,0.13327143]
[1772970921849,0.0001208,67533.0,67523.0,0.0002]
[1772970921850,0.07415867,67533.0,67523.0,0.0002]
[1772970922111,0.07415867,67533.0,67520.0,0.13307662]
[1772970922274,0.05475999,67531.0,67520.0,0.07405183]
[1772970922685,0.05488079,67531.0,67520.0,0.07405183]
[1772970925568,0.07404116,67530.0,67520.0,0.07405183]
[1772970925773,0.07404116,67530.0,67519.0,0.07573252]
[1772970925774,0.07416196,67530.0,67519.0,0.07573252]
[1772970926374,0.07416196,67530.0,67520.0,0.0002]
[1772970940693,0.07564196,67530.0,67520.0,0.0002]
[1772970943770,0.07416196,67530.0,67521.0,0.05663925]
[1772970944773,0.0001208,67530.0,67521.0,0.13068935]
[1772970946765,0.0001208,67530.0,67521.0,0.13069014]
[1772970946947,0.0001208,67530.0,67520.0,0.07425169]
[1772970947742,0.0001208,67530.0,67513.0,0.0002]
[1772970947944,0.05653289,67528.0,67513.0,0.07425876]
[1772970948625,0.05653289,67528.0,67513.0,0.07573876]
[1772970948965,0.07404445,67527.0,67513.0,0.07573876]
[1772970949110,0.05801289,67526.0,67513.0,0.07573876]
[1772970949961,0.05801289,67526.0,67520.0,0.0002]
[1772970950186,0.05813233,67526.0,67520.0,0.0002]
[1772970950739,0.05653289,67524.0,67512.0,0.00148]
[1772970950972,0.05653289,67524.0,67511.0,0.074062]
[1772970950973,0.05653289,67520.0,67511.0,0.00148]
[1772970951335,0.05653289,67520.0,67510.0,0.00015]
[1772970951536,0.05653289,67520.0,67511.0,0.00148]
[1772970952382,0.07405103,67521.0,67511.0,0.00148]
[1772970955904,0.07405103,67523.0,67512.0,0.0740609]
[1772970956323,0.07405103,67523.0,67512.0,0.13070015]
[1772970957414,1e-08,67533.0,67513.0,0.05663925]
[1772970957623,0.07403842,67533.0,67517.0,0.05663925]
[1772970957832,0.07403842,67533.0,67519.0,0.21557858]
[1772970958087,1e-08,67533.0,67522.0,0.05663925]
[1772970959965,1e-08,67533.0,67523.0,0.07404884]
[1772970960165,1e-08,67533.0,67524.0,0.00148]
[1772970960795,1e-08,67533.0,67525.0,0.05663925]
[1772970961577,1e-08,67533.0,67524.0,0.00148]
[1772970962040,0.07403788,67533.0,67525.0,0.07404664]
[1772970962351,0.13057077,67533.0,67525.0,0.07404664]
[1772970962906,0.07403788,67533.0,67525.0,0.07404664]
[1772970965648,1e-08,67533.0,67525.0,0.07404664]
[1772970975215,1e-08,67533.0,67526.0,0.05618616]
[1772970975665,0.00022001,67537.0,67526.0,0.05618616]
[1772970975955,0.07425359,67537.0,67526.0,0.05618616]
[1772970976119,0.00022001,67537.0,67526.0,0.05618616]
[1772970976508,0.07425386,67537.0,67526.0,0.05618616]
[1772970976722,0.00022001,67537.0,67526.0,0.05618616]
[1772970976962,0.07425372,67537.0,67526.0,0.05618616]
[1772970977393,0.07425372,67537.0,67527.0,0.07404445]
[1772970979356,0.07453872,67537.0,67527.0,0.07404445]
[1772970983354,0.00034301,67540.0,67527.0,0.07404445]
[1772970983694,0.29625472,67544.0,67527.0,0.07404445]
[1772970983695,0.07402785,67543.0,67529.0,0.05618616]
[1772970983839,0.07402785,67543.0,67530.0,0.00148]
[1772970984044,0.07550785,67543.0,67530.0,0.00148]
[1772970984462,0.13252478,67543.0,67530.0,0.00148]
[1772970985097,0.00022001,67537.0,67530.0,0.00148]
[1772970985931,0.00022001,67537.0,67531.0,0.07404007]
[1772970986244,0.13104393,67543.0,67531.0,0.13022623]
[1772970987913,0.13104393,67543.0,67531.0,0.07404007]
[1772970989032,0.05701693,67542.0,67531.0,0.07404007]
[1772970990259,0.0740291,67541.0,67531.0,0.07404007]
[1772970995140,0.13104603,67541.0,67531.0,0.07404007]
[1772970995465,0.0740291,67541.0,67531.0,0.07404007]
[1772970995624,0.05701693,67540.0,67531.0,0.07404007]
[1772970996998,0.07403029,67540.0,67531.0,0.07404007]
[1772970997203,0.05701693,67539.0,67531.0,0.07404007]
[1772970998103,0.22376562,67538.0,67526.0,0.07424522]
[1772970998458,0.05701693,67535.0,67526.0,0.07404542]
[1772970999044,0.07403678,67534.0,67526.0,0.07404542]
[1772971000001,0.07403678,67534.0,67525.0,0.07404664]
[1772971001213,0.07403673,67535.0,67525.0,0.07404664]
[1772971001415,0.07403673,67535.0,67517.0,0.0002]
[1772971001416,0.22376562,67532.0,67517.0,0.0002]
[1772971001610,0.07403673,67535.0,67518.0,0.07405424]
[1772971001611,0.05376731,67529.0,67518.0,0.07405424]
[1772971001802,0.00148,67531.0,67518.0,0.07405424]
[1772971001803,0.22376562,67527.0,67518.0,0.07405424]
[1772971002005,0.05376731,67526.0,67518.0,0.07405424]
[1772971002227,0.05376731,67526.0,67517.0,0.07425526]
[1772971002431,0.05376731,67525.0,67517.0,0.07425526]
[1772971003756,0.00148,67537.0,67517.0,0.07425526]
[1772971003966,0.00148,67536.0,67517.0,0.07425526]
[1772971004165,0.00148,67536.0,67520.0,0.21845544]
[1772971004366,0.00148,67536.0,67521.0,0.05894965]
[1772971004547,0.00148,67535.0,67521.0,0.05894965]
[1772971004751,0.07403568,67538.0,67521.0,0.05894965]
[1772971004975,0.00148,67537.0,67523.0,0.05746965]
[1772971005154,0.00148,67537.0,67525.0,0.05746965]
[1772971005357,0.07403239,67539.0,67525.0,0.05746965]
[1772971005714,0.07551239,67539.0,67527.0,0.07404445]
[1772971005850,0.000123,67540.0,67528.0,0.05746965]
[1772971006218,0.000123,67540.0,67529.0,0.05746965]
[1772971008479,0.000123,67540.0,67530.0,0.07404116]
[1772971009064,0.000123,67540.0,67530.0,0.13151081]